bitfinex/quotes_SOLUSD_20250721
["timestamp","ask_amount","ask_price","bid_price","bid_amount"]
[1753132130398,6.64809635,194.81,194.78,26.0]
[1753132130594,0.72,194.8,194.79,26.0]
[1753132131511,6.64809635,194.81,194.79,26.0]
[1753132131985,7.36809635,194.81,194.79,26.0]
[1753132132385,0.72,194.8,194.79,26.0]
[1753132133697,0.72,194.8,194.79,26.03]
[1753132144618,7.36809635,194.8,194.79,26.03]
[1753132144824,7.36809635,194.8,194.79,0.03]
[1753132145120,0.72,194.8,194.79,0.03]
[1753132145295,7.36809635,194.8,194.79,0.03]
[1753132145492,8.00978012,194.8,194.79,0.03]
[1753132145711,0.72,194.8,194.79,0.03]
[1753132145909,7.36809635,194.8,194.79,0.03]
[1753132146218,2.67320611,194.81,194.79,0.03]
[1753132146430,0.72,194.84,194.8,62.16]
[1753132146598,2.67296459,194.82,194.8,36.16]
[1753132146796,2.67296459,194.82,194.8,41.29333786]
[1753132147412,89.22,194.86,194.83,26.0]
[1753132147604,0.72,194.85,194.83,26.0]
[1753132148117,3.39289215,194.85,194.83,26.0]
[1753132148329,0.67,194.84,194.83,26.0]
[1753132156304,2.67289215,194.85,194.83,26.0]
[1753132156518,3.34289215,194.85,194.83,26.0]
[1753132158020,3.34289215,194.85,194.83,31.1326251]
[1753132158227,3.34289215,194.85,194.83,26.0]
[1753132158533,0.67,194.84,194.83,26.0]
[1753132160410,0.67,194.84,194.79,36.19]
[1753132160411,29.87685665,194.84,194.79,36.19]
[1753132160713,6.64809635,194.81,194.79,62.19]
[1753132160916,0.67,194.8,194.79,36.19]
[1753132161141,7.31809635,194.84,194.79,36.88]
[1753132161439,7.31809635,194.84,194.79,62.88]
[1753132161815,7.31809635,194.84,194.79,68.01354669]
[1753132161816,0.67,194.84,194.79,68.01354669]
[1753132162041,0.67,194.84,194.8,0.69]
[1753132162246,0.67,194.84,194.81,36.16]
[1753132163415,9.3209885,194.85,194.81,36.16]
[1753132163610,0.67,194.83,194.81,36.16]
[1753132163809,3.34289215,194.85,194.81,41.29313459]
[1753132164032,3.34289215,194.85,194.81,41.98313459]
[1753132165837,9.9909885,194.85,194.81,41.98313459]
[1753132166041,9.9909885,194.85,194.81,41.29313459]
[1753132166539,9.3209885,194.85,194.81,41.29313459]
[1753132166746,0.67,194.84,194.81,41.29313459]
[1753132168223,2.67267905,194.83,194.81,41.29313459]
[1753132169542,0.67,194.82,194.81,41.29313459]
[1753132169746,0.67,194.82,194.81,36.16]
[1753132169952,7.31809635,194.82,194.81,36.14]
[1753132170932,0.67,194.82,194.81,36.14]
[1753132171743,7.31809635,194.82,194.81,36.14]
[1753132171945,7.95971425,194.82,194.79,36.17]
[1753132172149,7.31809635,194.81,194.79,36.17]
[1753132172368,0.67,194.8,194.79,36.17]
[1753132174438,6.64809635,194.82,194.79,0.03]
[1753132174759,7.31809635,194.82,194.79,0.03]
[1753132174932,0.67,194.81,194.79,0.03]
[1753132176743,0.67,194.8,194.79,0.03]
[1753132176941,7.31809635,194.8,194.79,0.03]
[1753132178157,7.31809635,194.8,194.79,26.03]
[1753132178348,0.67,194.8,194.79,26.03]
[1753132182365,12.45112742,194.82,194.8,26.0]
[1753132182541,7.31809635,194.82,194.8,26.0]
[1753132182741,6.64809635,194.82,194.8,26.0]
[1753132182942,0.67,194.81,194.8,26.0]
[1753132185667,2.67267905,194.83,194.8,30.24774654]
[1753132185865,2.67267905,194.83,194.8,31.85343595]
[1753132186047,3.34267905,194.83,194.8,31.13343595]
[1753132186444,12.05318366,194.83,194.8,26.0]
[1753132186773,0.67,194.82,194.81,26.0]
[1753132187756,7.30769107,194.82,194.81,26.0]
[1753132191170,12.44063429,194.82,194.81,26.0]
[1753132191859,5.80294322,194.82,194.81,26.0]
[1753132192065,12.44063429,194.82,194.81,26.0]
[1753132201084,0.67,194.82,194.81,26.0]
[1753132205325,5.80294322,194.82,194.81,26.0]
[1753132205589,0.67,194.82,194.81,26.0]
[1753132205795,0.06,194.86,194.84,26.0]
[1753132205958,0.06,194.86,194.85,42.73769107]
[1753132206162,10.04019131,194.86,194.84,26.0]
[1753132206389,10.04019131,194.86,194.84,62.1]
[1753132208094,2.73250024,194.86,194.84,62.1]
[1753132208271,0.06,194.86,194.85,0.66]
[1753132213092,0.06,194.86,194.85,10.03633236]
[1753132215893,0.06,194.86,194.84,40.34417943]
[1753132216087,0.06,194.86,194.85,62.08]
[1753132217266,0.06,194.86,194.85,26.0]
[1753132217469,7.35239951,194.86,194.79,0.03]
[1753132217701,6.63239951,194.84,194.83,26.0]
[1753132217889,6.63239951,194.84,194.82,36.08]
[1753132218203,0.66,194.84,194.82,36.08]
[1753132218574,7.93398448,194.83,194.82,36.08]
[1753132218891,7.93398448,194.83,194.79,36.11]
[1753132219088,6.63239951,194.81,194.79,36.11]
[1753132219702,0.64158497,194.83,194.79,36.11]
[1753132219703,7.29239951,194.8,194.79,36.11]
[1753132220088,0.66,194.8,194.79,36.11]
[1753132221388,6.63239951,194.81,194.79,36.11]
[1753132221802,7.29239951,194.81,194.79,36.11]
[1753132222170,7.29239951,194.81,194.8,26.0]
[1753132224185,7.29239951,194.81,194.79,26.03]
[1753132224398,16.84468397,194.86,194.79,26.03]
[1753132224399,7.93408328,194.8,194.79,26.03]
[1753132224901,7.93408328,194.8,194.79,0.03]
[1753132226484,7.27398448,194.83,194.79,0.03]
[1753132226990,7.93398448,194.83,194.79,0.03]
[1753132227191,6.63239951,194.81,194.79,0.03]
[1753132227388,6.63239951,194.82,194.79,0.03]
[1753132227776,7.29239951,194.82,194.79,0.03]
[1753132229580,7.27395155,194.84,194.81,26.0]
[1753132229779,6.63239951,194.84,194.81,26.0]
[1753132229980,95.83331979,194.89,194.83,32.63239951]
[1753132230198,94.93270723,194.89,194.83,6.63239951]
[1753132230398,89.80138744,194.89,194.85,26.0]
[1753132230602,89.16,194.89,194.85,62.06]
[1753132230779,88.5,194.89,194.85,62.72]
[1753132230987,0.06,194.9,194.85,69.35239951]
[1753132232592,0.72,194.9,194.85,69.35239951]
[1753132233007,0.72,194.9,194.85,68.69239951]
[1753132233603,2.6721213,194.87,194.85,62.06]
[1753132235708,2.6721213,194.87,194.85,68.69239951]
[1753132241181,2.6721213,194.87,194.85,62.06]
[1753132241384,0.72,194.86,194.85,26.0]
[1753132241703,0.06,194.86,194.84,62.04]
[1753132242206,0.66,194.85,194.84,62.04]
[1753132244591,0.06,194.86,194.84,62.04]
[1753132244886,0.72,194.86,194.84,62.04]
[1753132245089,0.66,194.85,194.84,62.04]
[1753132245927,7.29239951,194.85,194.83,36.04]
[1753132246216,7.29239951,194.84,194.82,36.04]
[1753132246512,0.66,194.83,194.82,36.04]
[1753132251693,7.29239951,194.83,194.82,36.04]
[1753132252000,13.06666425,194.83,194.8,0.03]
[1753132252195,6.63239951,194.81,194.8,0.03]
[1753132252390,11.76560622,194.81,194.8,0.03]
[1753132252603,12.42560622,194.81,194.8,0.03]
[1753132253919,15.09913106,194.81,194.8,0.03]
[1753132254819,9.96592435,194.81,194.8,0.03]
[1753132256523,15.74078189,194.81,194.8,0.03]
[1753132257404,15.09913106,194.81,194.8,0.03]
[1753132258831,9.96592435,194.81,194.8,0.03]
[1753132259498,15.09913106,194.81,194.8,0.03]
[1753132261118,9.96592435,194.81,194.8,0.03]
[1753132261501,15.09913106,194.81,194.8,0.03]
[1753132267333,8.46673155,194.81,194.8,0.03]
[1753132267619,16.78468397,194.78,194.76,0.03]
[1753132267799,16.78468397,194.76,194.71,0.03]
[1753132268003,28.55160802,194.76,194.71,0.03]
[1753132268230,29.25160802,194.76,194.71,0.03]
[1753132270907,22.61920851,194.76,194.71,0.03]
[1753132271127,65.91342358,194.76,194.71,0.03]
[1753132273838,16.78468397,194.74,194.71,0.03]
[1753132274007,61.67516496,194.74,194.71,0.03]
[1753132274205,64.35025444,194.74,194.71,0.03]
[1753132274405,65.05025444,194.74,194.71,0.03]
[1753132275503,67.55375222,194.74,194.71,0.03]
[1753132275831,71.09260408,194.74,194.71,0.03]
[1753132279514,24.11708348,194.73,194.71,0.03]
[1753132279726,30.74948299,194.73,194.71,0.03]
[1753132279929,30.04948299,194.73,194.71,0.03]
[1753132280245,164.58468397,194.72,194.7,0.03]
[1753132280415,214.51146337,194.71,194.7,0.03]
[1753132280731,214.56948299,194.71,194.7,0.03]
[1753132282330,219.70532603,194.71,194.7,0.03]
[1753132282531,213.07292652,194.71,194.7,0.03]
[1753132283416,219.70532603,194.71,194.7,0.03]
[1753132285822,213.07292652,194.71,194.7,0.03]
[1753132290733,170.42052701,194.71,194.7,0.03]
[1753132290938,9.36748899,194.74,194.7,0.03]
[1753132291118,7.27431395,194.73,194.7,0.74]
[1753132291314,7.27431395,194.73,194.71,0.71]
[1753132292318,0.64191444,194.73,194.71,0.71]
[1753132292514,46.02937047,194.74,194.71,0.71]
[1753132293131,51.16443306,194.74,194.71,0.71]
[1753132293335,51.16443306,194.74,194.7,0.03]
[1753132293523,51.16443306,194.74,194.7,0.74]
[1753132294141,46.02937047,194.74,194.71,0.71]
[1753132294642,0.06,194.74,194.73,6.63239951]
[1753132294847,0.06,194.74,194.73,7.34239951]
[1753132295229,0.06,194.74,194.73,12.47771507]
[1753132295434,0.06,194.74,194.73,5.84531556]
[1753132297256,0.06,194.74,194.73,12.47771507]
[1753132297543,0.06,194.74,194.73,5.84531556]
[1753132297745,0.06,194.74,194.73,12.47771507]
[1753132298544,0.06,194.74,194.73,7.34239951]
[1753132298753,0.06,194.74,194.73,0.71]
[1753132298922,0.06,194.74,194.72,26.0]
[1753132299124,0.06,194.74,194.73,0.7]
[1753132300756,0.06,194.74,194.72,26.0]
[1753132301068,7.32239951,194.73,194.7,0.03]
[1753132301234,7.27434692,194.72,194.71,26.0]
[1753132301425,0.64194741,194.72,194.71,26.0]
[1753132301837,0.06,194.74,194.71,33.33239951]
[1753132302051,0.06,194.74,194.73,32.63239951]
[1753132302627,0.06,194.74,194.73,33.33239951]
[1753132302826,0.06,194.74,194.73,33.59066329]
[1753132303143,0.06,194.74,194.73,74.72597885]
[1753132304352,2.67412917,194.77,194.73,89.13876776]
[1753132304537,0.06,194.78,194.76,6.63239951]
[1753132304846,0.06,194.78,194.77,6.63239951]
[1753132305056,0.06,194.78,194.77,12.46666043]
[1753132305722,0.06,194.78,194.77,12.72468688]
[1753132306822,0.06,194.78,194.77,12.46666043]
[1753132309346,0.06,194.78,194.77,48.46666043]
[1753132310438,0.06,194.78,194.77,41.83426092]
[1753132310641,0.06,194.78,194.77,48.46666043]
[1753132311667,0.06,194.78,194.77,41.83426092]
[1753132311852,0.06,194.78,194.77,48.46666043]
[1753132315366,0.06,194.82,194.77,48.46666043]
[1753132315367,0.06,194.82,194.8,26.0]
[1753132315569,0.06,194.82,194.81,42.87016241]
[1753132315877,0.06,194.82,194.81,43.57016241]
[1753132318078,0.06,194.82,194.81,48.70336912]
[1753132320675,0.03367994,194.82,194.81,48.70336912]
[1753132321363,0.03367994,194.82,194.81,42.07096961]
[1753132321561,0.03367994,194.82,194.81,48.70336912]
[1753132322061,1e-08,194.82,194.81,48.44560622]
[1753132322269,0.06,194.86,194.84,26.0]
[1753132322479,0.06,194.86,194.85,42.86989896]
[1753132322669,0.06,194.86,194.85,47.74455244]
[1753132323776,0.06,194.86,194.85,48.44455244]
[1753132331597,0.06,194.86,194.85,5.13215293]
[1753132331799,0.77,194.86,194.85,26.0]
[1753132331980,0.77,194.86,194.85,61.96]
[1753132332792,0.06,194.86,194.85,68.59239951]
[1753132332963,0.06,194.86,194.85,69.28239951]
[1753132333790,0.06,194.86,194.85,74.41455244]
[1753132335805,0.06,194.86,194.85,61.96]
[1753132336027,0.06,194.86,194.85,26.0]
[1753132336028,7.40239951,194.86,194.85,26.0]
[1753132336295,7.40239951,194.86,194.83,0.03]
[1753132336511,6.63239951,194.84,194.83,0.03]
[1753132337003,7.34239951,194.84,194.83,0.03]
[1753132337173,0.71,194.84,194.83,0.03]
[1753132339104,12.47481585,194.84,194.83,0.03]
[1753132339469,0.71,194.84,194.83,0.03]
[1753132340692,7.3338857,194.86,194.83,0.03]
[1753132340693,0.77,194.86,194.83,0.03]
[1753132341407,0.71,194.85,194.84,26.0]
[1753132342917,3.38284339,194.85,194.84,26.0]
[1753132345237,2.67284339,194.85,194.84,26.0]
[1753132345528,0.06,194.86,194.84,48.41481585]
[1753132345711,0.06,194.86,194.85,32.63239951]
[1753132346720,0.06,194.86,194.85,37.76455244]
[1753132347220,0.06,194.86,194.85,68.59239951]
[1753132348222,0.06,194.86,194.85,61.96]
[1753132349911,0.06,194.86,194.83,0.03]
[1753132349912,7.40239951,194.86,194.83,0.03]
[1753132350115,6.63239951,194.84,194.83,0.03]
[1753132350518,7.34239951,194.84,194.83,0.03]
[1753132351001,13.11636789,194.84,194.83,0.03]
[1753132351502,7.34239951,194.84,194.83,0.03]
[1753132352439,12.47481585,194.84,194.83,0.03]
[1753132352606,124.32779982,194.84,194.83,0.03]
[1753132353900,16.78468397,194.83,194.79,0.03]
[1753132354130,23.41708348,194.8,194.79,0.03]
[1753132354343,24.05876725,194.8,194.79,0.03]
[1753132354545,7.34239951,194.8,194.79,0.03]
[1753132356006,0.71,194.8,194.79,0.03]
[1753132356243,95.84239951,194.82,194.79,0.03]
[1753132356656,7.34239951,194.81,194.79,0.03]
[1753132356863,0.71,194.81,194.79,0.03]
[1753132357074,88.5,194.82,194.79,0.03]
[1753132357749,89.21,194.82,194.79,0.03]
[1753132357953,0.71,194.82,194.79,6.66239951]
[1753132358155,2.67223992,194.88,194.81,38.68753531]
[1753132358355,0.06,194.9,194.89,26.0]
[1753132358742,0.06,194.9,194.89,26.09287428]
[1753132359336,0.06,194.9,194.89,0.09287428]
[1753132359557,7.35239951,194.9,194.89,0.09287428]
[1753132360966,0.72,194.9,194.89,0.09287428]
[1753132361179,11.33142715,194.9,194.89,0.09287428]
[1753132362271,11.71541388,194.9,194.89,0.09287428]
[1753132364440,11.33142715,194.9,194.89,0.09287428]
[1753132364962,11.71541388,194.9,194.89,0.09287428]
[1753132366865,47.31142715,194.9,194.89,0.09287428]
[1753132368363,0.06,194.9,194.89,0.09287428]
[1753132368672,36.04,194.9,194.89,0.09287428]
[1753132368868,36.7,194.9,194.89,0.09287428]
[1753132369167,47.31142715,194.9,194.89,0.09287428]
[1753132369536,64.09611112,194.9,194.89,0.09287428]
[1753132369843,64.48009785,194.9,194.89,0.09287428]
[1753132370775,64.09611112,194.9,194.89,0.09287428]
[1753132371067,66.02159785,194.9,194.89,0.09287428]
[1753132372580,71.15243417,194.9,194.89,0.09287428]
[1753132373153,16.78468397,194.89,194.86,0.03]
[1753132373454,27.39611112,194.87,194.86,0.03]
[1753132373968,28.05611112,194.87,194.86,0.03]
[1753132374364,33.18773733,194.87,194.86,0.03]
[1753132375189,33.18773733,194.87,194.82,0.03]
[1753132375190,27.39611112,194.83,194.82,0.03]
[1753132375478,63.41611112,194.83,194.82,0.03]
[1753132375684,64.07611112,194.83,194.82,0.03]
[1753132376566,69.20879089,194.83,194.82,0.03]
[1753132378779,69.59277762,194.83,194.82,0.03]
[1753132379257,61.65524473,194.83,194.82,0.03]
[1753132379463,72.26667188,194.83,194.82,0.03]
[1753132379983,99.98517188,194.83,194.82,0.03]
[1753132380697,89.37374473,194.83,194.82,0.03]
[1753132380876,53.17374473,194.83,194.82,0.03]
[1753132381061,100.00517188,194.83,194.82,0.03]
[1753132381266,96.03398471,194.83,194.82,0.03]
[1753132381786,22.04106496,194.83,194.82,0.03]
[1753132382100,10.0,194.89,194.82,7.39023998]
[1753132382101,7.02422671,194.88,194.82,7.39023998]
[1753132382254,36.24,194.87,194.82,0.03]
[1753132382461,36.24,194.87,194.83,0.72]
[1753132382882,7.02422671,194.88,194.83,0.72]
[1753132383093,42.88023998,194.87,194.82,0.03]
[1753132383389,0.38398673,194.86,194.82,0.03]
[1753132383561,36.62398673,194.87,194.82,0.75]
[1753132383762,47.89863176,194.87,194.82,5.88292577]
[1753132383985,47.89863176,194.87,194.82,5.16292577]
[1753132383986,47.23863176,194.87,194.82,5.16292577]
[1753132384282,27.399329,194.83,194.82,0.03]
[1753132384473,64.02331573,194.83,194.82,0.03]
[1753132384682,64.68331573,194.83,194.82,0.03]
[1753132385766,64.66331573,194.83,194.82,0.03]
[1753132386194,69.7959955,194.83,194.82,0.03]
[1753132386794,33.5759955,194.83,194.82,0.03]
[1753132386994,69.7959955,194.83,194.82,0.03]
[1753132388300,36.22,194.83,194.82,0.03]
[1753132388473,47.89863176,194.83,194.82,0.03]
[1753132388797,64.68331573,194.83,194.82,0.03]
[1753132390087,69.8159955,194.83,194.82,0.03]
[1753132391812,27.78331573,194.83,194.82,0.03]
[1753132391980,63.619329,194.83,194.82,0.03]
[1753132392411,64.299329,194.83,194.82,0.03]
[1753132392584,64.68331573,194.83,194.82,0.03]
[1753132393713,69.8159955,194.83,194.82,0.03]
[1753132397710,69.43200877,194.83,194.82,0.03]
[1753132398086,69.8159955,194.83,194.82,0.03]
[1753132399902,33.5959955,194.83,194.82,0.03]
[1753132400101,69.7759955,194.83,194.82,0.03]
[1753132403008,36.2687359,194.83,194.82,0.03]
[1753132403202,25.65409087,194.83,194.82,0.03]
[1753132403404,61.41010414,194.83,194.82,0.03]
[1753132403613,60.75010414,194.83,194.82,0.03]
[1753132403817,2.6727404,194.83,194.82,0.03]
[1753132404028,36.16,194.83,194.82,0.03]
[1753132404527,5.51640841,194.84,194.82,0.03]
[1753132404737,36.14,194.83,194.82,0.03]
[1753132405108,46.75788406,194.83,194.82,0.03]
[1753132405319,16.13429247,194.84,194.82,0.03]
[1753132405519,36.14,194.83,194.82,0.03]
[1753132405722,16.13429247,194.84,194.82,0.03]
[1753132405918,52.27429247,194.84,194.82,0.03]
[1753132406532,36.14,194.83,194.82,0.03]
[1753132407730,10.61788406,194.85,194.82,0.71]
[1753132408107,91.6166722,194.87,194.84,26.0]
[1753132408108,0.06,194.87,194.84,26.0]
[1753132408329,36.18,194.87,194.84,26.68]
[1753132408532,10.67788406,194.87,194.84,26.0]
[1753132408828,10.67788406,194.87,194.82,5.84292708]
[1753132409030,10.67788406,194.87,194.83,0.68]
[1753132410529,10.61788406,194.84,194.82,0.03]
[1753132411110,10.67788406,194.87,194.83,0.68]
[1753132411432,10.61788406,194.86,194.83,0.68]
[1753132411821,36.16,194.87,194.83,0.68]
[1753132412032,46.77788406,194.87,194.83,0.68]
[1753132412334,10.67788406,194.87,194.84,0.68]
[1753132413743,0.06,194.87,194.84,16.43008647]
[1753132414036,0.06,194.87,194.85,0.68]
[1753132415340,0.06,194.87,194.86,31.13188956]
[1753132415728,0.06,194.87,194.86,31.81188956]
[1753132416124,0.06,194.87,194.86,42.42977362]
[1753132418329,0.06,194.87,194.86,42.94296257]
[1753132422152,0.06,194.9,194.86,55.77268647]
[1753132422354,0.06,194.9,194.89,36.61788406]
[1753132422528,0.06,194.9,194.89,37.13099401]
[1753132422726,0.06,194.9,194.89,37.82099401]
[1753132423851,0.06,194.9,194.89,42.9520936]
[1753132425134,0.06,194.9,194.89,32.33420954]
[1753132425336,0.00601422,194.9,194.89,42.9520936]
[1753132427354,0.00601422,194.9,194.89,38.95931817]
[1753132428428,0.00601422,194.9,194.89,74.95931817]
[1753132430731,0.00601422,194.9,194.89,5.13109959]
[1753132430955,0.00601422,194.9,194.89,41.11109959]
[1753132432159,0.00601422,194.9,194.89,48.42620822]
[1753132435538,0.69601422,194.9,194.89,26.0]
[1753132436437,0.69601422,194.9,194.84,0.03]
[1753132436438,7.70510958,194.9,194.84,0.03]
[1753132436640,7.31510863,194.89,194.85,35.96]
[1753132436857,0.00601422,194.9,194.88,26.0]
[1753132437438,0.69601422,194.9,194.88,26.0]
[1753132438367,0.69,194.89,194.88,26.0]
[1753132440267,0.69,194.89,194.86,35.96]
[1753132440571,0.00601422,194.9,194.87,0.69]
[1753132440749,0.69601422,194.9,194.88,35.96]
[1753132441067,0.00601422,194.9,194.88,35.96]
[1753132441647,0.00601422,194.9,194.89,61.96]
[1753132442963,0.69601422,194.9,194.89,61.96]
[1753132443147,0.00601422,194.9,194.89,68.58510863]
[1753132443771,0.00601422,194.9,194.89,61.96]
[1753132443947,0.69601422,194.9,194.89,61.96]
[1753132444150,0.69601422,194.9,194.89,26.0]
[1753132444347,0.69601422,194.9,194.88,35.96]
[1753132444570,16.78468397,194.88,194.84,0.03]
[1753132444776,6.62510863,194.86,194.84,0.03]
[1753132444945,0.38398673,194.85,194.84,0.03]
[1753132445156,1.07398673,194.85,194.84,0.03]
[1753132445469,24.48377933,194.85,194.84,0.03]
[1753132445645,23.79377933,194.85,194.84,0.03]
[1753132445845,0.69,194.85,194.84,0.03]
[1753132446060,1.07398673,194.85,194.84,0.03]
[1753132447663,12.83124829,194.85,194.84,0.03]
[1753132448454,65.61593226,194.85,194.84,0.03]
[1753132452185,65.61593226,194.85,194.84,1e-08]
[1753132452494,91.59593226,194.85,194.84,1e-08]
[1753132452782,249.39593226,194.85,194.84,1e-08]
[1753132452982,203.03194553,194.85,194.84,1e-08]
[1753132453188,249.07194553,194.85,194.84,1e-08]
[1753132453388,42.78468397,194.83,194.81,0.03]
[1753132453595,85.83377933,194.83,194.81,0.03]
[1753132453774,91.6364591,194.83,194.81,0.03]
[1753132454571,94.31061355,194.83,194.81,0.03]
[1753132454770,94.31061355,194.83,194.79,0.03]
[1753132454771,16.78468397,194.82,194.79,0.03]
[1753132455078,16.78468397,194.79,194.75,0.03]
[1753132455280,16.78468397,194.79,194.71,0.03]
[1753132455281,16.78468397,194.73,194.71,0.03]
[1753132455492,59.85377933,194.72,194.71,0.03]
[1753132455789,65.65935862,194.72,194.71,0.03]
[1753132456884,60.52377933,194.72,194.71,0.03]
[1753132458289,65.65935862,194.72,194.71,0.03]
[1753132458982,61.58510539,194.72,194.71,0.03]
[1753132459187,68.21021402,194.72,194.71,0.03]
[1753132460067,63.07463473,194.72,194.71,0.03]
[1753132462701,0.38398673,194.73,194.71,0.03]
[1753132462881,0.67,194.77,194.71,0.74]
[1753132463076,0.67,194.77,194.72,26.0]
[1753132463278,124.54,194.78,194.72,32.62510863]
[1753132463483,24.46377933,194.77,194.72,26.0]
[1753132463787,36.71,194.76,194.72,26.0]
[1753132463998,0.38398673,194.75,194.72,31.13549021]
[1753132464206,1.05398673,194.75,194.72,31.13549021]
[1753132464910,36.04,194.76,194.72,31.13549021]
[1753132464911,36.42398673,194.76,194.72,31.13549021]
[1753132465092,36.42398673,194.76,194.72,37.76059884]
[1753132465402,36.42398673,194.76,194.72,38.47059884]
[1753132465605,36.42398673,194.76,194.72,37.76059884]
[1753132465606,36.04,194.76,194.72,37.76059884]
[1753132465809,36.04,194.76,194.73,0.71]
[1753132465989,36.02,194.76,194.73,0.71]
[1753132466190,36.02,194.76,194.72,37.76059884]
[1753132466505,36.02,194.76,194.72,38.47059884]
[1753132466704,36.02,194.76,194.72,31.84549021]
[1753132466908,36.69,194.76,194.72,31.13549021]
[1753132468206,0.67,194.76,194.72,31.13549021]
[1753132468414,36.67,194.76,194.72,31.13549021]
[1753132468600,0.67,194.75,194.72,26.0]
[1753132468794,0.67,194.75,194.71,11.79072779]
[1753132469409,0.67,194.75,194.71,5.16561916]
[1753132469590,36.0,194.76,194.71,12.50072779]
[1753132469916,36.67,194.76,194.71,12.50072779]
[1753132470113,36.0,194.76,194.72,7.33510863]
[1753132470289,1.05398673,194.76,194.71,6.65510863]
[1753132470493,37.05398673,194.76,194.71,6.65510863]
[1753132470710,0.67,194.75,194.71,6.65510863]
[1753132471711,36.0,194.76,194.73,6.62510863]
[1753132472716,36.0,194.76,194.71,5.16579515]
[1753132472918,0.67,194.75,194.71,0.03]
[1753132473212,53.50468397,194.74,194.71,0.03]
[1753132473420,6.62510863,194.72,194.71,0.03]
[1753132473790,24.0797926,194.72,194.71,0.03]
[1753132474524,61.2197926,194.72,194.71,0.03]
[1753132475813,66.35537189,194.72,194.71,0.03]
[1753132476025,69.02633071,194.72,194.71,0.03]
[1753132477009,62.40122208,194.72,194.71,0.03]
[1753132477208,69.02633071,194.72,194.71,0.03]
[1753132477610,62.40122208,194.72,194.71,0.03]
[1753132477832,69.02633071,194.72,194.71,0.03]
[1753132478406,70.68613071,194.72,194.71,0.03]
[1753132480728,26.92102208,194.72,194.71,0.03]
[1753132480935,56.61564279,194.72,194.71,0.03]
[1753132481116,54.3286707,194.72,194.71,0.03]
[1753132481314,0.06,194.76,194.71,7.31510863]
[1753132481513,37.16,194.75,194.72,7.28510863]
[1753132482611,37.16,194.75,194.72,0.66]
[1753132483007,42.29490055,194.75,194.71,0.03]
[1753132483634,48.92000918,194.75,194.71,0.03]
[1753132483837,49.64000918,194.75,194.71,0.03]
[1753132484448,52.19765066,194.75,194.71,0.03]
[1753132484945,45.57254203,194.75,194.71,0.03]
[1753132485247,52.19765066,194.75,194.71,0.03]
[1753132485853,45.57254203,194.75,194.71,0.03]
[1753132486053,44.85254203,194.75,194.71,0.69]
[1753132486748,39.71764148,194.75,194.71,0.69]
[1753132487147,0.44398673,194.76,194.72,0.66]
[1753132487322,37.12,194.75,194.73,0.66]
[1753132487830,37.12,194.75,194.71,6.65510863]
[1753132488241,0.72,194.74,194.71,0.03]
[1753132488920,51.41651192,194.75,194.71,0.03]
[1753132489121,52.13651192,194.75,194.71,0.03]
[1753132489320,51.41651192,194.75,194.71,0.03]
[1753132489547,24.51377933,194.74,194.71,0.03]
[1753132489848,37.08,194.73,194.71,0.03]
[1753132491121,42.21535237,194.73,194.71,0.03]
[1753132491332,17.8886707,194.72,194.71,0.03]
[1753132491759,16.78468397,194.72,194.71,0.03]
[1753132491954,17.1686707,194.72,194.71,0.03]